bitfinex-derivatives/quotes_BNBF0:USTF0_20260221
["timestamp","ask_amount","ask_price","bid_price","bid_amount"]
[1771635671856,1.18503408,625.62,624.96,1.384]
[1771635672057,1.18503408,625.61,624.96,1.384]
[1771635673053,1.18503408,625.6,624.96,1.384]
[1771635675158,1.18503408,625.59,624.96,1.384]
[1771635678466,1.18699915,625.59,624.96,1.384]
[1771635680968,1.18699915,625.59,624.91,1.19737039]
[1771635682069,1.18699915,625.6,624.92,1.19737039]
[1771635683669,1.18699915,625.6,624.93,1.199]
[1771635684165,1.18699915,625.59,624.93,1.199]
[1771635688268,1.18699915,625.58,624.93,1.199]
[1771635701281,1.18699915,625.56,624.93,1.199]
[1771635701481,1.18699915,625.55,624.93,1.199]
[1771635703182,1.18699915,625.54,624.93,1.199]
[1771635704878,1.18699915,625.51,624.93,1.199]
[1771635705079,1.18699915,625.49,624.93,1.199]
[1771635706085,1.18699915,625.48,624.93,1.199]
[1771635706381,1.18699915,625.49,624.93,1.199]
[1771635706782,1.18699915,625.47,624.93,1.199]
[1771635712190,1.18699915,625.46,624.93,1.199]
[1771635715790,1.18699915,625.47,624.93,1.199]
[1771635716287,1.18699915,625.5,624.93,1.199]
[1771635716790,1.18699915,625.51,624.93,1.199]
[1771635717290,1.18699915,625.53,624.93,1.199]
[1771635717590,1.18699915,625.55,624.93,1.199]
[1771635717987,1.18699915,625.57,624.93,1.199]
[1771635718288,1.18699915,625.6,624.95,1.19737039]
[1771635719387,1.18699915,625.61,624.96,1.19737039]
[1771635719591,1.18699915,625.62,624.97,1.19737039]
[1771635720392,1.18699915,625.62,624.96,1.19737039]
[1771635720992,1.18699915,625.63,624.97,1.19737039]
[1771635721188,1.18699915,625.65,624.99,1.19737039]
[1771635721489,1.18699915,625.68,625.03,1.19737039]
[1771635722392,1.18699915,625.69,625.02,1.19737039]
[1771635724198,1.18699915,625.69,625.03,1.428]
[1771635724492,1.18699915,625.7,625.03,1.428]
[1771635726593,1.18699915,625.71,625.03,1.428]
[1771635730199,1.18699915,625.72,625.03,1.428]
[1771635733398,1.18699915,625.73,625.03,1.428]
[1771635735001,1.18699915,625.74,625.03,1.428]
[1771635735200,1.18699915,625.75,625.03,1.428]
[1771635740204,1.18699915,625.76,625.03,1.428]
[1771635751714,1.18699915,625.77,625.03,1.428]
[1771635753117,1.18699915,625.76,625.03,1.428]
[1771635753317,1.18699915,625.83,625.06,1.19737039]
[1771635754218,1.18699915,625.83,625.07,1.19737039]
[1771635754418,1.18699915,625.84,625.07,1.19737039]
[1771635754617,0.27821527,625.94,625.1,1.19737039]
[1771635754618,1.18699915,625.86,625.1,1.19737039]
[1771635756320,1.18699915,625.85,625.1,1.19737039]
[1771635756720,1.18699915,625.87,625.11,1.19737039]
[1771635757019,1.18699915,625.9,625.15,1.19737039]
[1771635757216,1.18699915,625.89,625.15,1.19737039]
[1771635757421,1.18699915,625.9,625.15,1.19737039]
[1771635758119,1.18699915,625.89,625.16,1.767]
[1771635759224,1.18699915,625.89,625.16,2.96437039]
[1771635759423,1.18699915,625.89,625.16,1.767]
[1771635759920,0.27821527,625.94,625.22,1.19737039]
[1771635760723,1.18699915,625.95,625.22,1.19737039]
[1771635761226,1.18699915,625.94,625.23,1.19737039]
[1771635761423,1.18699915,625.95,625.22,1.19737039]
[1771635761627,1.18699915,625.99,625.27,1.19737039]
[1771635762226,1.18699915,625.92,625.21,1.19737039]
[1771635762426,1.18699915,625.92,625.19,1.19737039]
[1771635763222,1.18699915,625.92,625.2,1.19737039]
[1771635763423,1.18699915,625.93,625.19,1.19737039]
[1771635764325,1.18699915,625.93,625.18,1.19737039]
[1771635764925,1.18699915,625.92,625.17,1.19737039]
[1771635765529,1.18699915,625.92,625.16,2.96437039]
[1771635766326,1.18699915,625.93,625.16,2.96437039]
[1771635767326,1.18699915,625.93,625.16,1.767]
[1771635768431,1.18699915,625.94,625.16,1.767]
[1771635770534,1.18699915,625.95,625.16,1.767]
[1771635772136,1.18699915,626.01,625.2,1.19737039]
[1771635773241,1.18699915,626.02,625.2,1.19737039]
[1771635774341,1.18699915,626.02,625.19,1.19737039]
[1771635780546,1.18699915,626.03,625.2,1.19737039]
[1771635780746,1.46515215,626.05,625.23,1.19737039]
[1771635781249,1.18699915,626.04,625.22,1.19737039]
[1771635786350,1.18699915,626.03,625.22,1.19737039]
[1771635787356,1.18699915,626.03,625.23,1.19737039]
[1771635790260,1.18699915,626.02,625.24,1.19737039]
[1771635791860,1.18699915,626.02,625.25,1.645]
[1771635792364,1.18699915,626.01,625.25,2.84237039]
[1771635793566,1.18699915,626.0,625.25,2.84237039]
[1771635794560,1.18699915,626.0,625.26,1.19737039]
[1771635795366,0.278153,626.05,625.27,1.19737039]
[1771635795367,1.18699915,625.99,625.27,1.19737039]
[1771635795562,1.18699915,625.98,625.26,1.19737039]
[1771635796363,1.18699915,625.97,625.27,1.19737039]
[1771635797364,1.18699915,625.95,625.28,1.19737039]
[1771635798366,1.18699915,625.95,625.29,1.19737039]
[1771635799267,1.18699915,625.94,625.29,1.19737039]
[1771635800263,1.18699915,625.94,625.3,1.19737039]
[1771635800464,1.86676311,626.05,625.3,1.19737039]
[1771635800465,1.18699915,625.93,625.3,1.19737039]
[1771635800865,1.18699915,625.86,625.25,1.645]
[1771635801066,1.18699915,625.83,625.25,1.645]
[1771635801566,1.18699915,625.82,625.25,1.645]
[1771635802069,1.18699915,625.81,625.25,1.645]
[1771635806275,1.18699915,625.82,625.25,1.645]
[1771635810375,1.18699915,625.83,625.25,1.645]
[1771635812075,1.18699915,625.84,625.25,1.645]
[1771635812778,1.18699915,625.86,625.25,1.645]
[1771635813276,1.18699915,625.87,625.25,1.645]
[1771635813478,1.18699915,625.88,625.25,1.645]
[1771635813775,1.18699915,625.91,625.25,2.84237039]
[1771635814573,1.18699915,625.93,625.27,1.19737039]
[1771635815779,1.18699915,625.94,625.28,1.19737039]
[1771635817881,1.18699915,625.95,625.3,1.19737039]
[1771635818079,1.18699915,626.08,625.42,1.19737039]
[1771635818381,1.18699915,626.08,625.41,1.19737039]
[1771635819281,1.18699915,626.09,625.41,1.19737039]
[1771635820376,1.18699915,626.1,625.4,1.19737039]
[1771635821079,1.18699915,626.11,625.42,1.19737039]
[1771635821286,1.18699915,626.12,625.41,1.19737039]
[1771635822885,1.18699915,626.18,625.46,1.19737039]
[1771635823083,1.18699915,626.2,625.48,1.19737039]
[1771635823282,1.18699915,626.21,625.47,1.19737039]
[1771635823681,1.18699915,626.23,625.49,1.19737039]
[1771635824386,1.18699915,626.24,625.48,1.19737039]
[1771635825186,1.18699915,626.25,625.47,1.19737039]
[1771635826686,1.18699915,626.25,625.46,1.19737039]
[1771635827290,1.18699915,626.26,625.46,1.19737039]
[1771635828386,1.18699915,626.27,625.45,1.19737039]
[1771635828686,1.18699915,626.28,625.46,1.19737039]
[1771635829291,1.18699915,626.29,625.46,1.19737039]
[1771635830291,1.18699915,626.29,625.45,1.19737039]
[1771635831289,0.27804188,626.37,625.44,1.19737039]
[1771635831290,1.18699915,626.3,625.44,1.19737039]
[1771635833287,1.18699915,626.3,625.42,1.19737039]
[1771635834191,1.18699915,626.31,625.44,1.19737039]
[1771635834492,1.18699915,626.32,625.44,1.19737039]
[1771635835192,1.18699915,626.32,625.43,1.19737039]
[1771635837189,1.18699915,626.33,625.43,1.19737039]
[1771635839295,1.18699915,626.33,625.42,1.19737039]
[1771635840094,1.18699915,626.33,625.43,1.723]
[1771635841295,1.18699915,626.34,625.43,1.723]
[1771635846794,1.18699915,626.33,625.43,1.723]
[1771635847693,1.18699915,626.32,625.43,1.723]
[1771635847895,1.18699915,626.27,625.43,1.723]
[1771635848398,1.18699915,626.25,625.43,1.723]
[1771635849196,1.18699915,626.24,625.43,1.723]
[1771635850195,1.18699915,626.23,625.43,1.723]
[1771635850497,1.58861011,626.35,625.43,1.723]
[1771635850695,1.18484254,626.23,625.43,1.723]
[1771635852297,1.18484254,626.19,625.43,1.723]
[1771635854299,1.18484254,626.16,625.43,1.723]
[1771635855304,1.18484254,626.15,625.43,1.723]
[1771635856302,1.18484254,626.14,625.43,1.723]
[1771635857301,1.18484254,626.13,625.43,1.723]
[1771635858405,1.18484254,626.12,625.43,1.723]
[1771635859305,1.18484254,626.11,625.43,1.723]
[1771635860307,1.18484254,626.1,625.43,1.723]
[1771635861203,1.18484254,626.09,625.43,1.723]
[1771635862006,1.18484254,626.11,625.44,1.19148515]
[1771635862308,1.18484254,626.1,625.45,1.19148515]
[1771635863304,1.18484254,626.08,625.43,2.91448515]
[1771635863510,1.18484254,626.07,625.43,1.723]
[1771635864209,1.18484254,626.06,625.43,1.723]
[1771635865705,1.18484254,626.01,625.43,1.723]
[1771635866006,1.18484254,626.0,625.43,1.723]
[1771635867212,1.18484254,626.01,625.43,1.723]
[1771635869316,1.18484254,626.02,625.43,1.723]
[1771635871118,1.18484254,626.01,625.43,1.723]
[1771635873415,1.18484254,626.02,625.43,1.723]
[1771635874519,1.18484254,626.01,625.43,1.723]
[1771635877222,1.18484254,626.0,625.43,1.723]
[1771635878826,1.18484254,625.95,625.21,1.19148515]
[1771635879125,1.18484254,625.89,625.15,1.19148515]
[1771635879424,1.18484254,625.9,625.14,1.19148515]
[1771635880125,1.18484254,625.91,625.14,1.19148515]
[1771635881329,1.18484254,625.92,625.13,1.19148515]
[1771635882529,1.18484254,625.92,625.14,1.617]
[1771635884129,1.18484254,625.93,625.14,1.617]
[1771635887730,1.18484254,625.94,625.14,1.617]
[1771635890030,1.18484254,625.97,625.16,1.19148515]
[1771635891130,1.18484254,625.97,625.17,1.19148515]
[1771635892235,1.18484254,625.96,625.17,1.19148515]
[1771635894429,1.18484254,625.95,625.16,1.19148515]
[1771635895333,1.18484254,625.95,625.17,1.19148515]
[1771635898241,1.18484254,625.94,625.17,1.19148515]
[1771635900141,1.18484254,625.94,625.18,1.19148515]
[1771635903143,1.18484254,625.93,625.18,1.19148515]
[1771635903342,1.18484254,625.93,625.19,1.19148515]
[1771635905348,1.18484254,625.92,625.19,1.19148515]
[1771635906247,1.18484254,625.92,625.2,1.19148515]
[1771635907149,1.18484254,625.91,625.21,1.19148515]
[1771635908152,1.18484254,625.9,625.21,1.19148515]
[1771635909252,1.18484254,625.9,625.22,1.19148515]
[1771635910249,1.18484254,625.89,625.22,1.19148515]
[1771635911150,1.18484254,625.89,625.23,1.19148515]
[1771635912255,1.18484254,625.88,625.23,1.19148515]
[1771635914258,1.18484254,625.88,625.24,1.19148515]
[1771635916157,1.18484254,625.87,625.24,1.19148515]
[1771635918258,1.18484254,625.87,625.25,1.19148515]
[1771635919158,1.18484254,625.86,625.25,1.19148515]
[1771635920254,1.18484254,625.86,625.14,3.2192159]
[1771635920255,1.18484254,625.86,625.26,1.19148515]
[1771635921254,1.18484254,625.85,625.26,1.19148515]
[1771635923258,1.18484254,625.85,625.27,1.19148515]
[1771635924159,1.18484254,625.84,625.27,1.19148515]
[1771635924361,1.18484254,625.85,625.27,1.19148515]
[1771635927162,1.18484254,625.85,625.28,1.19148515]
[1771635927856,1.18484254,625.8,625.24,1.19148515]
[1771635929561,1.18484254,625.8,625.23,1.19148515]
[1771635929762,1.18484254,625.8,625.24,1.19148515]
[1771635930759,1.18484254,625.8,625.23,1.19148515]
[1771635933462,1.18484254,625.81,625.23,1.19148515]
[1771635937964,1.18484254,625.78,625.21,1.19148515]
[1771635938165,1.18484254,625.77,625.19,1.19148515]
[1771635938369,1.18484254,625.77,625.18,1.19148515]
[1771635940270,1.18484254,625.78,625.18,1.19148515]
[1771635940471,1.18484254,625.76,625.16,1.19148515]
[1771635940968,1.18484254,625.73,625.13,1.19148515]
[1771635941371,1.18484254,625.73,625.12,1.19148515]
[1771635942168,1.18484254,625.74,625.12,1.19148515]
[1771635943173,1.18484254,625.73,625.09,1.19148515]
[1771635944275,1.18484254,625.74,625.09,1.19148515]
[1771635946177,1.18484254,625.74,625.08,1.19148515]
[1771635947174,1.18484254,625.75,625.08,1.19148515]
[1771635949379,1.18484254,625.75,625.07,1.19148515]
[1771635951182,1.18484254,625.76,625.07,1.19148515]
[1771635956285,1.18484254,625.76,625.06,1.19148515]
[1771635960686,1.18484254,625.76,625.07,1.19148515]
[1771635968292,1.18484254,625.75,625.08,1.19148515]
[1771635972094,1.18484254,625.74,625.08,1.19148515]
[1771635972296,1.18484254,625.74,625.04,1.371]
[1771635972297,1.18484254,625.74,625.09,1.19148515]
[1771635975199,1.18484254,625.73,625.09,1.19148515]
[1771635976298,1.18484254,625.73,625.1,1.19148515]
[1771635979202,1.18484254,625.72,625.11,1.19148515]
[1771635980103,1.18484254,625.72,625.12,1.249]
[1771635981200,1.18484254,625.71,625.12,2.44048515]
[1771635983306,1.18484254,625.7,625.13,1.19148515]
[1771635985307,1.18484254,625.69,625.14,1.19148515]
[1771635987203,1.18484254,625.69,625.15,1.19148515]
[1771635987805,1.18484254,625.7,625.16,1.19148515]
[1771635988007,1.18484254,625.85,625.31,1.19148515]
[1771635988205,1.18484254,625.88,625.28,1.19148515]
[1771635989209,1.18484254,625.9,625.27,1.19148515]
[1771635990110,1.18484254,625.91,625.26,1.19148515]
[1771635990408,1.18484254,625.93,625.28,1.19148515]
[1771635990609,1.18484254,626.04,625.39,1.19148515]
[1771635991206,1.18484254,626.06,625.37,1.19148515]
[1771635992209,1.18484254,626.07,625.35,1.19148515]
[1771635993113,1.18484254,626.08,625.33,1.19148515]
[1771635994214,1.18484254,626.09,625.32,1.19148515]
[1771635995211,1.18484254,626.1,625.31,1.19148515]
[1771635996213,1.18484254,626.11,625.3,1.19148515]
[1771635997214,1.18484254,626.12,625.3,1.19148515]
[1771635998215,1.18484254,626.13,625.29,1.19148515]
[1771636000216,1.18484254,626.14,625.28,1.19148515]
[1771636002216,1.18484254,626.16,625.28,1.19148515]
[1771636004318,1.18484254,626.16,625.27,1.19148515]
[1771636004819,1.18484254,626.16,625.16,1.6022159]
[1771636004820,1.18484254,626.16,625.28,1.19148515]
[1771636005119,1.18484254,626.16,625.27,1.19148515]
[1771636006219,1.18484254,626.17,625.27,1.19148515]
[1771636012830,1.18484254,626.17,625.29,1.19148515]
[1771636013031,1.18484254,626.19,625.29,1.19148515]
[1771636013231,1.18484254,626.2,625.29,1.19148515]
[1771636014231,1.18484254,626.19,625.29,1.19148515]
[1771636014433,1.18484254,626.2,625.29,1.19148515]
[1771636014632,1.18484254,626.24,625.34,1.19148515]
[1771636019235,1.18484254,626.24,625.35,1.19148515]
[1771636022238,1.18484254,626.23,625.35,1.19148515]
[1771636023136,1.18484254,626.23,625.36,1.19148515]
[1771636023935,1.18484254,626.24,625.37,1.19148515]
[1771636024133,5.56013541,627.14,625.45,1.19148515]
[1771636024134,1.18484254,626.32,625.45,1.19148515]
[1771636024737,1.18484254,626.37,625.51,1.19148515]
[1771636024938,1.4628822,626.39,625.52,1.19148515]
[1771636025338,1.18484254,626.4,625.54,1.19148515]
[1771636025534,1.18484254,626.41,625.55,1.19148515]
[1771636026438,1.18484254,626.41,625.54,1.19148515]
[1771636026637,1.18484254,626.4,625.53,1.19148515]
[1771636027441,1.18484254,626.36,625.49,1.19148515]
[1771636028142,1.18484254,626.35,625.5,1.19148515]
[1771636029142,1.18484254,626.34,625.5,1.19148515]
[1771636030138,1.18484254,626.34,625.51,1.19148515]
[1771636031137,1.18484254,626.32,625.52,1.19148515]
[1771636032142,1.18484254,626.28,625.5,1.19148515]
[1771636033240,1.18484254,626.28,625.51,1.19148515]
[1771636034339,1.18484254,626.27,625.51,1.19148515]
[1771636035843,1.18484254,626.27,625.52,1.19148515]
[1771636036044,1.18484254,626.29,625.53,1.19148515]
[1771636037343,1.18484254,626.29,625.52,1.19148515]
[1771636039145,1.18484254,626.3,625.52,1.19148515]
[1771636039441,1.18484254,626.29,625.52,1.19148515]
[1771636040141,1.18484254,626.3,625.52,1.19148515]
[1771636041044,1.18484254,626.34,625.56,1.19148515]
[1771636041243,1.18484254,626.38,625.6,1.19148515]
[1771636042146,1.18484254,626.38,625.59,1.19148515]
[1771636042346,1.18484254,626.41,625.62,1.19148515]
[1771636043044,1.18484254,626.39,625.6,1.19148515]
[1771636043348,1.18484254,626.38,625.59,1.19148515]
[1771636044355,1.18484254,626.36,625.56,1.19148515]
[1771636048256,1.18484254,626.32,625.53,1.19148515]
[1771636050153,1.18484254,626.32,625.54,1.19148515]
[1771636050956,1.18484254,626.3,625.52,1.19148515]
[1771636052153,1.18484254,626.3,625.53,1.19148515]
[1771636053152,1.18484254,626.29,625.53,1.19148515]
[1771636054156,1.18484254,626.29,625.54,1.19148515]
[1771636055257,1.18484254,626.28,625.54,1.19148515]
[1771636056159,1.18484254,626.28,625.55,1.19148515]
[1771636057159,1.18484254,626.27,625.55,1.19148515]
[1771636058159,1.18484254,626.27,625.56,1.19148515]
[1771636059160,1.18484254,626.26,625.56,1.19148515]
[1771636060256,1.18484254,626.26,625.57,1.19148515]
[1771636061358,1.18484254,626.25,625.57,1.19148515]
[1771636062260,1.18484254,626.25,625.58,1.19148515]
[1771636063358,1.18484254,626.24,625.58,1.19148515]
[1771636064166,1.18484254,626.24,625.59,1.19148515]
[1771636066061,1.18484254,626.23,625.59,1.19148515]
[1771636066360,1.18484254,626.23,625.6,1.19148515]
[1771636067160,1.18484254,626.22,625.6,1.19148515]
[1771636068162,1.18484254,626.21,625.61,1.19148515]
[1771636069161,1.18484254,626.21,625.62,1.19148515]
[1771636081376,1.18484254,626.21,625.63,1.19148515]
[1771636084476,1.18484254,626.26,625.68,1.19148515]
[1771636084674,1.18484254,626.28,625.69,1.19148515]
[1771636089281,1.18484254,626.29,625.69,1.19148515]
[1771636092380,1.18484254,626.29,625.68,1.19148515]
[1771636097386,1.18484254,626.3,625.68,1.19148515]
[1771636100991,1.18484254,626.3,625.68,2.37448515]
[1771636101194,1.18484254,626.3,625.68,1.183]
[1771636114212,1.18484254,626.29,625.68,1.183]
[1771636114411,1.18484254,626.29,625.68,2.37448515]
[1771636119611,1.18935881,626.29,625.68,2.38034177]
[1771636121211,1.18935881,626.28,625.69,1.19734177]
[1771636124915,1.18935881,626.27,625.69,1.19734177]
[1771636126215,1.18935881,626.26,625.69,1.19734177]
[1771636128219,1.18935881,626.26,625.7,1.19734177]
[1771636129216,1.18935881,626.25,625.71,1.19734177]
[1771636139826,1.18935881,626.1,625.68,1.183]
[1771636140028,1.18935881,626.04,625.68,1.183]
[1771636140724,1.18935881,626.0,625.68,1.183]
[1771636140928,1.18935881,625.98,625.68,1.183]
[1771636141428,1.18935881,625.91,625.68,1.183]
[1771636141724,1.18935881,625.97,625.68,1.183]
[1771636142324,1.18935881,625.96,625.68,1.183]
[1771636143426,1.18935881,625.98,625.68,1.183]
[1771636144529,1.18935881,626.0,625.68,1.183]
[1771636145430,1.18935881,626.01,625.68,1.183]
[1771636146425,1.18935881,626.02,625.68,1.183]
[1771636147229,1.18935881,626.03,625.68,1.183]
[1771636147533,1.18935881,626.04,625.68,1.183]
[1771636148333,1.18935881,626.05,625.68,1.183]
[1771636149430,1.18935881,626.06,625.68,1.183]
[1771636151436,1.18935881,626.07,625.68,1.183]
[1771636152432,1.18935881,626.08,625.68,1.183]
[1771636154334,1.18935881,626.09,625.68,1.183]
[1771636156136,1.18935881,626.09,625.1,1.19734177]
[1771636156336,1.18935881,626.09,625.09,1.19734177]
[1771636157339,1.18935881,626.1,625.09,1.19734177]
[1771636157838,1.18935881,626.02,625.02,1.19734177]
[1771636158237,1.18935881,626.03,625.02,1.19734177]
[1771636158538,1.18935881,626.03,625.01,1.19734177]
[1771636158837,1.18935881,626.03,625.03,1.315]
[1771636160340,1.18935881,626.04,625.03,1.315]
[1771636164543,1.18935881,626.03,625.03,1.315]
[1771636168844,1.18935881,626.12,625.09,1.19734177]
[1771636169047,1.18935881,626.13,625.1,1.19734177]
[1771636169449,1.18935881,626.1,625.08,1.19734177]
[1771636171252,1.18935881,626.1,625.09,1.19734177]
[1771636171548,1.18935881,626.09,625.09,1.19734177]
[1771636173252,1.18935881,626.08,625.1,1.19734177]
[1771636174154,1.18935881,626.08,625.11,2.72934177]
[1771636174349,1.18935881,626.08,625.11,1.532]
[1771636174551,1.18935881,626.07,625.11,2.72934177]
[1771636175451,1.18935881,626.07,625.12,1.19734177]
[1771636176356,1.18935881,626.06,625.12,1.19734177]
[1771636177257,1.18935881,626.06,625.11,1.532]
[1771636177258,1.18935881,626.05,625.13,1.19734177]
[1771636178262,1.18935881,626.04,625.14,1.19734177]
[1771636178459,1.18935881,626.03,625.15,1.19734177]
[1771636178861,1.18935881,626.01,625.12,1.19734177]
[1771636179258,1.18935881,626.0,625.13,1.19734177]
[1771636179656,1.18935881,626.0,625.14,1.19734177]
[1771636179958,1.18935881,626.03,625.17,1.19734177]
[1771636180362,1.18935881,626.02,625.18,1.19734177]
[1771636181464,1.18935881,626.0,625.2,1.19734177]
[1771636182364,1.18935881,625.98,625.22,1.19734177]
[1771636183165,1.18935881,625.95,625.25,1.19734177]
[1771636183562,0.27798525,626.49,625.23,1.19734177]
[1771636183563,1.18935881,625.94,625.23,1.19734177]
[1771636184263,1.18935881,625.9,625.28,1.19734177]
[1771636194573,1.18935881,625.9,625.35,1.19734177]
[1771636194769,1.58861011,626.08,625.35,1.19734177]
[1771636196274,1.58861011,626.08,625.34,1.19734177]
[1771636200271,1.58861011,626.04,625.3,1.19734177]
[1771636200576,1.58861011,626.03,625.29,1.19734177]
[1771636200776,1.58861011,626.02,625.28,1.19734177]
[1771636201072,0.27798525,626.49,625.21,1.19734177]
[1771636201073,1.58861011,625.94,625.21,1.19734177]
[1771636201376,1.58861011,625.93,625.2,1.19734177]
[1771636202275,1.58861011,625.94,625.19,1.19734177]
[1771636204080,1.58861011,625.95,625.19,1.19734177]
[1771636205079,1.58861011,625.95,625.18,1.19734177]
[1771636205379,1.58861011,625.93,625.17,1.19734177]
[1771636206281,1.58861011,625.94,625.16,1.19734177]
[1771636208381,1.58861011,625.95,625.16,1.19734177]
[1771636209079,1.58861011,625.95,625.15,1.19734177]
[1771636212085,1.58861011,625.96,625.14,1.19734177]
[1771636216392,1.58861011,625.96,625.13,1.19734177]
[1771636217187,1.58861011,625.97,625.13,1.19734177]
[1771636222493,1.58861011,625.95,625.11,2.72934177]
[1771636224596,1.18811172,625.79,625.11,1.532]
[1771636225291,1.18811172,625.78,625.11,1.532]
[1771636228598,1.18811172,625.79,625.11,1.532]
[1771636232099,1.18811172,625.78,625.08,1.19734177]
[1771636232299,1.18811172,625.81,625.1,1.19734177]
[1771636233405,1.18811172,625.8,625.1,1.19734177]
[1771636234501,1.18811172,625.8,625.11,1.19734177]
[1771636237107,1.18811172,625.79,625.11,1.19734177]
[1771636237302,1.18811172,625.79,625.12,1.19734177]
[1771636239409,1.18811172,625.78,625.13,1.19734177]
[1771636241308,1.18811172,625.77,625.14,1.19734177]
[1771636242509,0.27821082,625.97,625.14,1.19734177]
[1771636242510,1.18811172,625.76,625.14,1.19734177]
[1771636243110,1.18811172,625.76,625.15,1.19734177]
[1771636243604,0.27821082,625.97,625.16,1.19734177]
[1771636243605,1.18811172,625.75,625.16,1.19734177]
[1771636244307,1.18811172,625.73,625.17,1.19734177]
[1771636245914,1.18811172,625.72,625.18,1.19734177]
[1771636254714,1.18811172,625.73,625.19,1.19734177]
[1771636257715,1.18811172,625.74,625.2,1.19734177]
[1771636258015,1.18811172,625.76,625.22,1.19734177]
[1771636258219,1.18811172,625.77,625.22,1.19734177]
[1771636261015,1.18811172,625.76,625.21,1.19734177]
[1771636264221,1.18811172,625.77,625.21,1.19734177]
[1771636278829,1.18811172,625.78,625.21,1.19734177]
[1771636279034,1.18811172,625.79,625.22,1.19734177]
[1771636284733,1.18811172,625.8,625.23,1.19734177]
[1771636290136,1.58861011,625.92,625.12,1.6022159]
[1771636290439,1.19191494,625.8,625.23,1.19904182]
[1771636295746,1.19191494,625.85,625.28,1.19904182]
[1771636299243,1.19191494,625.86,625.27,1.19904182]
[1771636299546,1.19191494,625.86,625.28,1.369]
[1771636299745,1.19191494,625.85,625.28,1.369]
[1771636300142,1.19191494,625.85,625.28,2.56804182]
[1771636300446,1.19191494,625.86,625.28,1.369]
[1771636301148,1.19191494,625.85,625.28,1.369]
[1771636301345,1.19191494,625.86,625.28,1.369]
[1771636312357,1.19191494,625.85,625.28,1.369]
[1771636314859,1.19191494,625.86,625.28,1.369]
[1771636322264,1.19191494,625.85,625.28,1.369]
[1771636322468,1.19191494,625.87,625.28,2.56804182]
[1771636322965,1.19191494,625.82,625.28,1.369]
[1771636335474,1.19191494,625.81,625.28,1.369]
[1771636344782,1.19191494,625.8,625.28,1.369]
[1771636346081,1.19191494,625.81,625.28,1.369]
[1771636352184,1.19191494,625.8,625.28,1.369]
[1771636352386,1.19191494,625.81,625.28,1.369]
[1771636353285,1.19191494,625.8,625.28,1.369]
[1771636353691,1.19191494,625.8,625.21,1.19904182]
[1771636358296,1.19191494,625.8,625.22,1.19904182]
[1771636362197,1.19191494,625.79,625.22,1.19904182]
[1771636364202,1.19191494,625.79,625.23,1.19904182]
[1771636366202,1.19191494,625.78,625.23,1.19904182]
[1771636370108,1.19191494,625.78,625.24,1.19904182]
[1771636372111,1.19357843,625.78,625.24,1.19965639]
[1771636375009,0.27821082,625.97,625.12,1.6022159]
[1771636375010,1.19357843,625.77,625.23,1.19965639]
[1771636382120,1.19357843,625.79,625.26,1.19965639]
[1771636382319,1.19357843,625.83,625.29,1.19965639]
[1771636383118,1.19357843,625.83,625.28,1.19965639]
[1771636384119,1.19357843,625.84,625.28,1.19965639]
[1771636386124,1.19357843,625.84,625.27,1.19965639]
[1771636387125,1.19357843,625.85,625.27,1.19965639]
[1771636392126,1.19357843,625.85,625.26,1.19965639]
[1771636394128,1.19357843,625.86,625.26,1.19965639]
[1771636404940,1.19357843,625.87,625.26,1.19965639]
[1771636406140,1.19357843,625.87,625.27,1.19965639]
[1771636407136,1.19357843,625.86,625.27,1.19965639]
[1771636409838,1.19357843,625.86,625.26,1.19965639]
[1771636410042,1.19357843,625.84,625.25,1.19965639]
[1771636410541,1.19242971,625.84,625.25,1.19831377]
[1771636413238,1.19242971,625.84,625.15,1.388]
[1771636413239,1.19242971,625.82,625.22,1.19831377]
[1771636413440,1.19242971,625.79,625.19,1.19831377]
[1771636414043,1.19242971,625.78,625.19,1.19831377]
[1771636414244,1.19242971,625.79,625.19,1.19831377]
[1771636419448,1.19242971,625.74,625.15,1.388]
[1771636421043,1.19242971,625.75,625.15,1.388]
[1771636423145,1.19242971,625.74,625.15,1.388]
[1771636423346,1.19242971,625.57,625.15,1.388]
[1771636424146,1.19242971,625.59,625.15,1.388]
[1771636425052,1.19242971,625.61,624.91,1.19831377]
[1771636425253,1.19242971,625.61,624.89,1.19831377]
[1771636426152,1.19242971,625.62,624.88,1.19831377]
[1771636427252,1.19242971,625.62,624.86,0.27822194]
[1771636427253,1.19242971,625.63,624.87,1.19831377]
[1771636428350,1.19242971,625.64,624.86,1.47653571]
[1771636429149,1.19242971,625.65,624.86,0.27822194]
[1771636430150,1.19242971,625.66,624.86,0.27822194]
[1771636430754,1.19242971,625.88,625.07,1.19831377]
[1771636433153,1.19242971,625.87,625.07,1.19831377]
[1771636435157,1.19242971,625.88,625.08,1.19831377]
[1771636442160,1.19242971,625.87,625.08,1.19831377]